bitfinex/quotes_BTCUSD_20250131
["timestamp","ask_amount","ask_price","bid_price","bid_amount"]
[1738359483801,0.00203291,101850.0,101840.0,0.21747455]
[1738359484226,3.291e-05,101850.0,101840.0,0.21747455]
[1738359484571,3.291e-05,101850.0,101840.0,0.21847455]
[1738359486619,3.291e-05,101850.0,101840.0,0.26527455]
[1738359488896,3.291e-05,101850.0,101840.0,0.61361771]
[1738359489224,3.291e-05,101850.0,101840.0,0.64425071]
[1738359493719,3.291e-05,101850.0,101840.0,0.96815071]
[1738359493924,3.291e-05,101850.0,101840.0,1.09813468]
[1738359494550,3.291e-05,101850.0,101840.0,1.12813468]
[1738359494751,0.0002562,101860.0,101850.0,0.393275]
[1738359494963,0.0002562,101860.0,101850.0,0.64212585]
[1738359496488,0.0002562,101860.0,101850.0,0.64512585]
[1738359496782,0.0002562,101860.0,101850.0,0.40488269]
[1738359497346,0.0002562,101860.0,101850.0,0.40588269]
[1738359498181,0.2713162,101860.0,101850.0,0.002]
[1738359498406,0.36855936,101860.0,101850.0,0.002]
[1738359500812,0.36855936,101860.0,101850.0,0.001]
[1738359500975,0.222775,101850.0,101840.0,0.00040595]
[1738359501178,1.19699942,101850.0,101840.0,0.00040595]
[1738359503039,1.19699942,101850.0,101840.0,0.00140595]
[1738359503400,1.19699942,101850.0,101840.0,0.00240595]
[1738359503862,1.04972442,101850.0,101840.0,0.00240595]
[1738359504064,0.97422442,101850.0,101840.0,0.29969495]
[1738359504270,0.97422442,101850.0,101840.0,0.39705171]
[1738359504690,0.97422442,101850.0,101840.0,0.51729487]
[1738359504901,0.97422442,101850.0,101840.0,0.5478886]
[1738359505714,1.05292442,101850.0,101840.0,0.28035644]
[1738359506017,1.05292442,101850.0,101840.0,0.39705171]
[1738359506566,1.05292442,101850.0,101840.0,0.24976271]
[1738359506864,1.05292442,101850.0,101840.0,0.39705171]
[1738359507413,1.05292442,101850.0,101840.0,0.24976271]
[1738359507632,1.20019942,101850.0,101840.0,0.24976271]
[1738359508420,1.20019942,101850.0,101840.0,0.09976271]
[1738359508667,1.24839942,101850.0,101840.0,0.00240595]
[1738359510503,1.10112442,101850.0,101840.0,0.00240595]
[1738359510749,1.02242442,101850.0,101840.0,0.14969495]
[1738359511001,0.97422442,101850.0,101840.0,0.14969495]
[1738359511245,0.97422442,101850.0,101840.0,0.15067679]
[1738359511476,0.97422442,101850.0,101840.0,0.24803355]
[1738359511675,0.97422442,101850.0,101840.0,0.27765848]
[1738359514356,0.0002562,101860.0,101850.0,0.320275]
[1738359514562,0.0002562,101860.0,101850.0,0.62280213]
[1738359514769,0.0002562,101860.0,101850.0,0.6534089]
[1738359514984,0.0002562,101860.0,101850.0,0.57082246]
[1738359515783,0.0012562,101860.0,101850.0,0.57082246]
[1738359516334,0.01678867,101870.0,101860.0,0.32026]
[1738359516507,0.01678867,101870.0,101860.0,0.44810993]
[1738359517693,0.01678867,101870.0,101860.0,0.77200993]
[1738359518005,0.01678867,101870.0,101860.0,0.86936669]
[1738359518417,0.01778867,101870.0,101860.0,0.87836669]
[1738359518624,0.01778867,101870.0,101860.0,0.84775992]
[1738359518831,0.01778867,101870.0,101860.0,0.87833961]
[1738359519031,0.01778867,101870.0,101860.0,0.85533961]
[1738359519239,0.01778867,101870.0,101860.0,0.72751676]
[1738359520377,0.01778867,101870.0,101860.0,0.73151676]
[1738359522222,0.01778867,101870.0,101860.0,0.85175992]
[1738359522626,0.01778867,101870.0,101860.0,0.88234335]
[1738359528374,0.01778867,101870.0,101860.0,1.14112732]
[1738359528835,0.01778867,101870.0,101860.0,1.01114335]
[1738359529756,0.01778867,101870.0,101860.0,1.01139934]
[1738359530132,0.01778867,101870.0,101860.0,1.15138331]
[1738359530339,0.97422442,101880.0,101870.0,0.320246]
[1738359530538,1.05094642,101890.0,101880.0,0.147232]
[1738359531749,1.05094642,101890.0,101880.0,0.14738196]
[1738359532319,0.000122,101890.0,101880.0,0.14738196]
[1738359532521,0.000122,101890.0,101880.0,0.14836342]
[1738359533081,0.002122,101890.0,101880.0,0.14836342]
[1738359533284,0.000122,101890.0,101880.0,1.34554731]
[1738359533489,0.0030213,101910.0,101900.0,0.320203]
[1738359533832,1.09784642,101930.0,101920.0,0.147174]
[1738359534151,0.97425735,101930.0,101920.0,0.147174]
[1738359534372,3.293e-05,101930.0,101920.0,0.19457153]
[1738359535002,3.293e-05,101930.0,101920.0,0.19472149]
[1738359535205,3.293e-05,101930.0,101920.0,0.39436465]
[1738359535406,3.293e-05,101930.0,101920.0,0.31496465]
[1738359535609,3.293e-05,101930.0,101920.0,0.19472149]
[1738359536261,0.00803293,101930.0,101920.0,0.19472149]
[1738359536602,3.293e-05,101930.0,101920.0,0.19472149]
[1738359536834,0.00303293,101930.0,101920.0,0.19472149]
[1738359537039,0.00303293,101930.0,101920.0,0.54184565]
[1738359537240,0.00303293,101930.0,101920.0,0.54086465]
[1738359537391,0.00303293,101930.0,101920.0,0.75064862]
[1738359537851,0.00303293,101930.0,101920.0,0.78101767]
[1738359538284,0.00303293,101930.0,101920.0,0.80965048]
[1738359538486,0.00303293,101930.0,101920.0,0.85618162]
[1738359539333,0.00103293,101930.0,101920.0,0.85618162]
[1738359539536,0.00203293,101930.0,101920.0,0.86518162]
[1738359539985,0.00103293,101930.0,101920.0,0.34161235]
[1738359540195,0.00103293,101930.0,101920.0,0.3202433]
[1738359540196,0.00203293,101930.0,101920.0,0.3202433]
[1738359540379,0.00203293,101930.0,101920.0,0.03830168]
[1738359540508,0.14919193,101930.0,101920.0,0.03830168]
[1738359540719,0.00203293,101930.0,101920.0,0.18547568]
[1738359540951,0.14919193,101930.0,101920.0,0.03830168]
[1738359541150,0.00103293,101930.0,101920.0,0.17647568]
[1738359541363,0.14819193,101930.0,101920.0,0.10091515]
[1738359541784,0.00103293,101930.0,101920.0,0.10091515]
[1738359542297,0.14819193,101930.0,101920.0,0.10091515]
[1738359542504,0.14819193,101930.0,101920.0,0.10991515]
[1738359542658,0.14919193,101930.0,101920.0,0.03830168]
[1738359542868,0.14819193,101930.0,101920.0,0.02930168]
[1738359543280,0.14819193,101930.0,101920.0,0.03030168]
[1738359543479,0.14719193,101930.0,101920.0,0.03030168]
[1738359543683,0.14719193,101930.0,101920.0,0.00114996]
[1738359543940,0.22269193,101930.0,101920.0,0.00114996]
[1738359544509,0.22269193,101930.0,101920.0,0.00714996]
[1738359544900,0.41729185,101930.0,101920.0,0.00714996]
[1738359545121,0.41729185,101930.0,101920.0,0.00114996]
[1738359545347,0.32093509,101930.0,101920.0,0.00114996]
[1738359546108,0.37053509,101930.0,101920.0,0.00114996]
[1738359546968,0.36953509,101930.0,101920.0,0.00014996]
[1738359547291,0.37353509,101930.0,101920.0,0.00014996]
[1738359547734,0.36953509,101930.0,101920.0,0.00014996]
[1738359547973,0.37153509,101930.0,101920.0,0.00014996]
[1738359549118,0.37353509,101930.0,101920.0,0.00014996]
[1738359550309,0.38342892,101930.0,101920.0,0.00014996]
[1738359551080,0.39046892,101930.0,101920.0,0.00014996]
[1738359551984,0.38342892,101930.0,101920.0,0.00014996]
[1738359552353,0.37353509,101930.0,101920.0,0.00014996]
[1738359552562,0.12913293,101930.0,101920.0,0.14732396]
[1738359552762,0.12913293,101930.0,101920.0,0.21602506]
[1738359552763,0.00403293,101930.0,101920.0,0.21602506]
[1738359553397,0.00203293,101930.0,101920.0,0.21602506]
[1738359553630,3.293e-05,101930.0,101920.0,0.21628105]
[1738359553808,0.00103293,101930.0,101920.0,0.36628105]
[1738359554228,0.00103293,101930.0,101920.0,0.36728105]
[1738359555921,0.00103293,101930.0,101920.0,0.48752421]
[1738359556297,0.00103293,101930.0,101920.0,0.50698298]
[1738359557540,0.00103293,101930.0,101920.0,0.55308298]
[1738359558162,0.97525735,101930.0,101920.0,0.55308298]
[1738359559854,0.00103293,101930.0,101920.0,0.55308298]
[1738359560064,0.97525735,101930.0,101920.0,0.50698298]
[1738359560230,0.97425735,101930.0,101920.0,0.50698298]
[1738359560631,0.97425735,101930.0,101920.0,0.51676147]
[1738359561855,0.97425735,101930.0,101920.0,0.51876147]
[1738359562488,0.97425735,101930.0,101920.0,0.51776147]
[1738359562638,0.97525735,101930.0,101920.0,0.52676147]
[1738359563023,0.97525735,101930.0,101920.0,0.52476147]
[1738359563427,0.97525735,101930.0,101920.0,0.55516743]
[1738359564230,0.00103293,101930.0,101920.0,0.55516743]
[1738359566278,0.00103293,101930.0,101920.0,0.55816743]
[1738359567653,0.8136499,101960.0,101940.0,0.147142]
[1738359567851,0.14713,101950.0,101940.0,0.2010957]
[1738359568117,1.12135442,101950.0,101940.0,0.2010957]
[1738359568598,0.97422442,101950.0,101940.0,0.29833886]
[1738359569182,0.97622442,101950.0,101940.0,0.29833886]
[1738359569683,0.97622442,101950.0,101940.0,0.44833886]
[1738359569938,0.97622442,101950.0,101940.0,0.47133886]
[1738359569939,0.002,101950.0,101940.0,0.47133886]
[1738359570120,0.97622442,101950.0,101940.0,0.55043886]
[1738359570325,0.97622442,101950.0,101940.0,0.15]
[1738359570490,0.97422442,101950.0,101930.0,0.343341]
[1738359570689,0.97422442,101950.0,101930.0,0.63678416]
[1738359570885,1.12135442,101950.0,101930.0,0.44058416]
[1738359571346,1.01572442,101950.0,101930.0,0.63678816]
[1738359571554,1.01572442,101950.0,101940.0,0.01956478]
[1738359571555,1.02072442,101950.0,101940.0,0.01956478]
[1738359571759,1.02272442,101950.0,101940.0,0.01956478]
[1738359571971,1.16985442,101950.0,101940.0,0.02356478]
[1738359572182,1.16785442,101950.0,101940.0,0.01956478]
[1738359572615,1.16885442,101950.0,101940.0,0.01956478]
[1738359572827,1.16785442,101950.0,101930.0,0.57141919]
[1738359573027,1.36403042,101950.0,101930.0,0.57141919]
[1738359573227,1.36403042,101950.0,101940.0,0.001]
[1738359574255,1.36503042,101950.0,101940.0,0.001]
[1738359574559,1.16885442,101950.0,101940.0,0.001]
[1738359574884,1.16885442,101950.0,101930.0,0.58897086]
[1738359575085,1.02172442,101950.0,101930.0,0.78517586]
[1738359575294,1.02272442,101950.0,101930.0,0.98838086]
[1738359575485,1.02272442,101950.0,101930.0,0.98138086]
[1738359575863,1.02172442,101950.0,101940.0,0.14840099]
[1738359576062,1.02084632,101950.0,101940.0,0.21610209]
[1738359576472,1.02184632,101950.0,101940.0,0.21610209]
[1738359577028,1.02184632,101950.0,101940.0,0.21710209]
[1738359577195,0.97534632,101950.0,101940.0,0.36710209]
[1738359578196,0.97634632,101950.0,101940.0,0.36710209]
[1738359578733,0.97634632,101950.0,101940.0,0.21995709]
[1738359578941,1.10184632,101950.0,101940.0,0.00125599]
[1738359580527,1.24897632,101950.0,101940.0,0.00125599]
[1738359581320,1.10184632,101950.0,101940.0,0.00125599]
[1738359582323,1.10184632,101950.0,101940.0,0.14840099]
[1738359582845,1.02604632,101950.0,101940.0,0.14840099]
[1738359583005,1.02604632,101950.0,101940.0,0.22014935]
[1738359584843,1.02604632,101950.0,101940.0,0.07300435]
[1738359586030,1.02604632,101950.0,101940.0,0.22014935]
[1738359587981,0.97634632,101950.0,101940.0,0.31739251]
[1738359589780,0.97634632,101950.0,101940.0,0.34794525]
[1738359590132,0.97634632,101950.0,101940.0,0.49794525]
[1738359592445,0.97634632,101950.0,101940.0,0.57514525]
[1738359593063,0.0021219,101950.0,101940.0,0.57514525]
[1738359594035,0.0021219,101950.0,101940.0,0.40070209]
[1738359594756,0.0021219,101950.0,101940.0,0.37014935]
[1738359595163,0.0021219,101950.0,101940.0,0.40070074]
[1738359595559,0.0021219,101950.0,101940.0,0.43002613]
[1738359596551,0.0021219,101950.0,101940.0,0.40070074]
[1738359597345,0.0021219,101950.0,101940.0,0.37014935]
[1738359599623,0.0021219,101950.0,101940.0,0.40069948]
[1738359599827,0.0021219,101950.0,101940.0,0.37014935]
[1738359600217,0.0021219,101950.0,101940.0,0.40069985]
[1738359600415,0.0021219,101950.0,101940.0,0.46739251]
[1738359600629,0.0021219,101950.0,101940.0,0.49794013]
[1738359603520,0.0021219,101950.0,101940.0,0.40069697]
[1738359604957,0.0021219,101950.0,101940.0,0.37014935]
[1738359605137,0.0021219,101950.0,101940.0,0.40070397]
[1738359607419,0.0011219,101950.0,101940.0,0.40070397]
[1738359607613,0.0011219,101950.0,101940.0,0.40270397]
[1738359608519,0.0001219,101950.0,101940.0,0.40170397]
[1738359608712,0.0011219,101950.0,101940.0,0.40870397]
[1738359609091,0.0001219,101950.0,101940.0,0.40170397]
[1738359609287,0.0001219,101950.0,101940.0,0.40270397]
[1738359609492,0.0001219,101950.0,101940.0,0.40070397]
[1738359609825,0.0011219,101950.0,101940.0,0.40070397]
[1738359610027,0.2746519,101950.0,101940.0,0.10355897]
[1738359610253,0.2746519,101950.0,101940.0,0.00125599]
[1738359611628,0.37189506,101950.0,101940.0,0.00125599]
[1738359612585,0.37189506,101950.0,101940.0,0.00025599]
[1738359613030,0.53389506,101950.0,101940.0,0.00025599]
[1738359613247,0.73125182,101950.0,101940.0,0.00025599]
[1738359613456,0.75125182,101950.0,101940.0,0.00025599]
[1738359613661,0.77225182,101950.0,101940.0,0.00025599]
[1738359614029,0.77125182,101950.0,101940.0,0.00025599]
[1738359614234,0.78301176,101950.0,101940.0,0.00025599]
[1738359614615,0.78101176,101950.0,101940.0,0.00025599]
[1738359615035,0.78501176,101950.0,101940.0,0.00025599]
[1738359615838,0.79201176,101950.0,101940.0,0.00125599]
[1738359616058,0.78501176,101950.0,101940.0,0.00025599]
[1738359616268,0.77501176,101950.0,101940.0,0.00025599]
[1738359616468,0.78201176,101950.0,101940.0,0.00125599]
[1738359616904,0.78909176,101950.0,101940.0,0.00125599]
[1738359618453,0.46261176,101950.0,101940.0,0.00125599]
[1738359618687,0.0111219,101950.0,101940.0,0.14840099]
[1738359618896,0.0111219,101950.0,101940.0,0.29840099]
[1738359619549,0.1582519,101950.0,101940.0,0.00125599]
[1738359619754,0.1542519,101950.0,101940.0,0.00125599]
[1738359619968,0.1552519,101950.0,101940.0,0.00125599]
[1738359620172,0.1552519,101950.0,101940.0,0.14840099]
[1738359620576,0.1542519,101950.0,101940.0,0.00125599]
[1738359620985,0.1562519,101950.0,101940.0,0.14840099]
[1738359621221,0.1492519,101950.0,101940.0,0.14740099]
[1738359621412,0.1472519,101950.0,101940.0,0.00025599]
[1738359621658,0.31387725,101950.0,101940.0,0.00125599]
[1738359621852,0.31487725,101950.0,101940.0,0.00125599]
[1738359622481,0.24549506,101950.0,101940.0,0.00125599]
[1738359622962,0.24549506,101950.0,101940.0,0.00025599]
[1738359623374,0.24449506,101950.0,101940.0,0.00025599]
[1738359624207,0.24649506,101950.0,101940.0,0.00025599]
[1738359625464,0.36829506,101950.0,101940.0,0.00025599]
[1738359625668,0.46565182,101950.0,101940.0,0.00025599]
[1738359625872,0.62565182,101950.0,101940.0,0.00025599]
[1738359626663,0.62365182,101950.0,101940.0,0.00025599]
[1738359627100,0.64665182,101950.0,101940.0,0.00125599]
[1738359628340,0.64665182,101950.0,101940.0,0.00025599]
[1738359628755,0.65365182,101950.0,101940.0,0.00025599]
[1738359629448,0.65165182,101950.0,101940.0,0.00025599]
[1738359629669,0.64965182,101950.0,101940.0,0.00025599]
[1738359629805,0.64965182,101950.0,101940.0,0.00125599]
[1738359629806,0.65665182,101950.0,101940.0,0.00125599]
[1738359630671,0.64665182,101950.0,101940.0,0.00125599]
[1738359631826,0.64895211,101950.0,101940.0,0.00125599]
[1738359634399,0.55159535,101950.0,101940.0,0.00125599]
[1738359638157,0.56159535,101950.0,101940.0,0.00125599]
[1738359638369,0.53859535,101950.0,101940.0,0.00125599]
[1738359643866,0.56863535,101950.0,101940.0,0.00125599]
[1738359648978,0.67154124,101950.0,101940.0,0.00125599]
[1738359649386,0.665398,101950.0,101940.0,0.00125599]
[1738359655993,0.658358,101950.0,101940.0,0.00125599]
[1738359656201,0.665318,101950.0,101940.0,0.00125599]
[1738359660787,0.655318,101950.0,101940.0,0.00125599]
[1738359662240,0.55796124,101950.0,101940.0,0.00125599]
[1738359671243,0.55100124,101950.0,101940.0,0.00125599]
[1738359671452,0.55796124,101950.0,101940.0,0.00125599]
[1738359672632,0.48166124,101950.0,101940.0,0.00125599]
[1738359673525,0.25620124,101950.0,101940.0,0.08265599]
[1738359673724,0.26316124,101950.0,101940.0,0.08265599]
[1738359674859,0.26316124,101950.0,101940.0,0.12965599]
[1738359675668,0.3087713,101950.0,101940.0,0.12965599]
[1738359675845,0.3087713,101950.0,101940.0,0.08265599]
[1738359676045,0.26316124,101950.0,101940.0,0.08265599]
[1738359678957,0.25620124,101950.0,101940.0,0.08265599]
[1738359680006,0.25320124,101950.0,101940.0,0.08265599]
[1738359680220,0.24820124,101950.0,101940.0,0.08165599]
[1738359680633,0.25020124,101950.0,101940.0,0.08165599]
[1738359680935,0.24820124,101950.0,101940.0,0.08165599]
[1738359682526,0.24920124,101950.0,101940.0,0.08165599]
[1738359683334,0.24920124,101950.0,101940.0,0.14869969]
[1738359684182,0.24920124,101950.0,101940.0,0.08165599]
[1738359691959,0.15195808,101950.0,101940.0,0.08165599]
[1738359692353,0.24920124,101950.0,101940.0,0.08165599]
[1738359695816,0.24920124,101950.0,101940.0,0.10158236]
[1738359696031,0.24920124,101950.0,101940.0,0.08165599]
[1738359696438,0.24920124,101950.0,101940.0,0.00025599]
[1738359696652,0.402718,101950.0,101940.0,0.00025599]
[1738359696854,0.585718,101950.0,101940.0,0.00025599]
[1738359697057,0.665018,101950.0,101940.0,0.00025599]
[1738359697268,0.642018,101950.0,101940.0,0.00025599]
[1738359699489,0.665018,101950.0,101940.0,0.00025599]
[1738359699705,0.515018,101950.0,101940.0,0.00025599]
[1738359700461,0.67483804,101950.0,101940.0,0.00025599]
[1738359701549,0.67383804,101950.0,101940.0,0.00025599]
[1738359701734,0.67583804,101950.0,101940.0,0.00025599]
[1738359702145,0.68383804,101950.0,101940.0,0.00125599]
[1738359710507,0.55348128,101950.0,101940.0,0.00125599]
[1738359710753,0.42498128,101950.0,101940.0,0.07925599]
[1738359712952,0.25820124,101950.0,101940.0,0.22640099]
[1738359713162,0.26516124,101950.0,101940.0,0.22640099]
[1738359715487,0.26516124,101950.0,101940.0,0.07925599]
[1738359715697,0.25820124,101950.0,101940.0,0.07925599]
[1738359715887,0.25820124,101950.0,101940.0,0.22640099]
[1738359717027,0.2569196,101950.0,101940.0,0.22640099]
[1738359717253,0.25803655,101950.0,101940.0,0.07925599]
[1738359717673,0.25803655,101950.0,101940.0,0.22640099]
[1738359717942,0.25803655,101950.0,101940.0,0.31255309]
[1738359719526,0.25815855,101950.0,101940.0,0.31255309]
[1738359719736,0.25015855,101950.0,101940.0,0.31155309]
[1738359720159,0.10502855,101950.0,101940.0,0.22540099]
[1738359720377,0.00778539,101950.0,101940.0,0.22540099]
[1738359720735,0.00378539,101950.0,101940.0,0.22540099]
[1738359721103,0.00478539,101950.0,101940.0,0.22540099]
[1738359723643,0.00478539,101950.0,101940.0,0.27060099]
[1738359723850,0.00478539,101950.0,101940.0,0.36795775]
[1738359724064,0.00478539,101950.0,101940.0,0.64794172]
[1738359724714,0.00478539,101950.0,101940.0,0.51795775]
[1738359724897,0.00478539,101950.0,101940.0,0.74518488]
[1738359725579,0.00478539,101950.0,101940.0,0.62514477]
[1738359727220,0.00378539,101950.0,101940.0,0.62514477]
[1738359727439,0.00378539,101950.0,101940.0,0.62614477]
[1738359727871,0.00178539,101950.0,101940.0,0.62614477]
[1738359728045,0.00278539,101950.0,101940.0,0.63414477]
[1738359728440,0.00278539,101950.0,101940.0,0.63714477]
[1738359729795,0.00278539,101950.0,101940.0,0.65646045]
[1738359733903,0.00278539,101950.0,101940.0,0.78644442]
[1738359735839,0.00278539,101950.0,101940.0,0.65646045]
[1738359744803,0.000122,101970.0,101960.0,0.147116]
[1738359745005,0.97434642,101970.0,101960.0,0.19451353]
[1738359745424,0.97434642,101970.0,101960.0,0.34549425]
[1738359745634,0.97434642,101970.0,101960.0,0.34451353]
[1738359745994,0.97483458,101970.0,101960.0,0.34451353]
[1738359746206,0.97483458,101970.0,101960.0,0.52005669]
[1738359746576,0.97483458,101970.0,101960.0,0.56525669]
[1738359746963,0.97583458,101970.0,101960.0,0.56525669]
[1738359749047,0.97583458,101970.0,101960.0,0.58517921]
[1738359749268,0.97783458,101970.0,101960.0,0.58517921]
[1738359750105,0.97683458,101970.0,101960.0,0.58517921]
[1738359750313,0.97483458,101970.0,101960.0,0.58517921]
[1738359750724,0.97483458,101970.0,101960.0,0.58617921]
[1738359751907,0.97483458,101970.0,101960.0,0.62525321]
[1738359752138,0.00061016,101970.0,101960.0,0.77763058]
[1738359752350,0.0031597,101970.0,101960.0,0.78663058]
[1738359752557,0.0031597,101970.0,101960.0,0.65725321]
[1738359752783,0.0031597,101970.0,101960.0,0.58905321]
[1738359752988,0.0031597,101970.0,101960.0,0.55866682]
[1738359753399,0.0031597,101970.0,101960.0,0.56166682]
[1738359754854,0.0031597,101970.0,101960.0,0.59205814]
[1738359755817,0.0031597,101970.0,101960.0,0.61505814]
[1738359756009,0.0031597,101970.0,101960.0,0.59205814]
[1738359758001,0.0521597,101970.0,101960.0,0.26651498]
[1738359758216,0.0521597,101970.0,101960.0,0.23612366]
[1738359758888,0.0521597,101970.0,101960.0,0.38612366]
[1738359762737,0.0031597,101970.0,101960.0,0.38612366]
[1738359762961,0.0031597,101970.0,101960.0,0.48336682]
[1738359763869,0.0031597,101970.0,101960.0,0.38612366]
[1738359764754,0.0031597,101970.0,101960.0,0.41654298]
[1738359768178,0.0031597,101970.0,101960.0,0.38612366]
[1738359775989,0.0031597,101970.0,101960.0,0.33872613]
[1738359776206,0.2321617,101970.0,101960.0,0.03192252]
[1738359776417,0.37750486,101970.0,101960.0,0.03192252]
[1738359777042,0.37750486,101970.0,101960.0,0.012]
[1738359777224,0.37650486,101970.0,101960.0,0.003]
[1738359777430,0.37650486,101970.0,101960.0,0.004]
[1738359777764,0.41710147,101970.0,101960.0,0.004]
[1738359778029,0.37650486,101970.0,101960.0,0.004]
[1738359778704,0.37650486,101970.0,101960.0,0.001]
[1738359780242,0.37650486,101970.0,101960.0,0.148116]
[1738359780972,0.22940286,101970.0,101960.0,0.148116]
[1738359781177,0.37650486,101970.0,101960.0,0.148116]
[1738359782068,0.22940286,101970.0,101960.0,0.148116]
[1738359782395,0.0502597,101970.0,101960.0,0.22477663]
[1738359782539,0.0021597,101970.0,101960.0,0.504154]
[1738359783008,0.0021597,101970.0,101960.0,0.37477663]
[1738359785875,0.0021597,101970.0,101960.0,0.68039716]
[1738359786076,0.0021597,101970.0,101960.0,0.72929716]
[1738359786495,0.0021597,101970.0,101960.0,0.78272498]
[1738359787357,0.0021597,101970.0,101960.0,0.78172498]
[1738359787541,0.0031597,101970.0,101960.0,0.78872498]
[1738359787737,0.0031597,101970.0,101960.0,0.79072498]
[1738359787940,0.0021597,101970.0,101960.0,0.78372498]
[1738359788144,0.0021597,101970.0,101960.0,0.78172498]
[1738359788566,0.0021597,101970.0,101960.0,0.78472498]
[1738359789157,0.0031597,101970.0,101960.0,0.79372498]
[1738359792660,0.0031597,101970.0,101960.0,0.81372498]
[1738359796648,0.0031597,101970.0,101960.0,0.79372498]
[1738359796854,0.0031597,101970.0,101960.0,0.81372498]
[1738359797933,6e-05,101990.0,101980.0,0.297087]
[1738359798144,6e-05,101990.0,101980.0,0.36533062]
[1738359798554,6e-05,101990.0,101980.0,0.46257378]
[1738359799609,6e-05,101990.0,101980.0,0.46357378]
[1738359802190,6e-05,101990.0,101980.0,0.48302353]
[1738359803907,6e-05,101990.0,101980.0,0.48202353]
[1738359804726,6e-05,101990.0,101980.0,0.48902353]
[1738359805387,0.00147976,101990.0,101980.0,0.49802353]
[1738359805737,0.00147976,101990.0,101980.0,0.50793365]
[1738359807610,0.00147976,101990.0,101980.0,0.53093365]
[1738359812133,0.000122,102000.0,101990.0,0.170073]
[1738359812319,0.000122,102000.0,101990.0,0.59603444]
[1738359812591,0.000122,102000.0,101990.0,0.7753898]
[1738359812909,0.000122,102000.0,101990.0,0.64601243]
[1738359813126,0.000122,102000.0,101990.0,0.57017679]
[1738359814882,0.000122,102000.0,101990.0,0.57617679]
[1738359815058,0.000122,102000.0,101990.0,0.58517679]
[1738359816092,0.97422442,102000.0,101990.0,0.81160864]
[1738359817706,0.97422442,102000.0,101990.0,0.71240864]
[1738359817933,1.02052442,102000.0,101990.0,0.43481763]
[1738359818826,1.02052442,102000.0,101990.0,0.58481763]
[1738359819518,1.02183053,102000.0,101990.0,0.58481763]
[1738359821090,1.25218853,102000.0,101990.0,0.015]
[1738359822349,1.2688552,102000.0,101990.0,0.015]
[1738359824715,1.1217972,102000.0,101990.0,0.162073]
[1738359824847,1.2688552,102000.0,101990.0,0.015]
[1738359825501,1.2688552,102000.0,101990.0,0.01525599]
[1738359828508,1.2688552,102000.0,101990.0,0.16232899]
[1738359829053,1.2688552,102000.0,101990.0,0.23445116]
[1738359832476,1.1217972,102000.0,101990.0,0.23445116]
[1738359838220,1.0384972,102000.0,101990.0,0.23445116]
[1738359838834,0.9921972,102000.0,101990.0,0.23445116]
[1738359839685,0.9921972,102000.0,101990.0,0.24434962]
[1738359842877,0.01797278,102000.0,101990.0,0.24434962]
[1738359843313,0.01666667,102000.0,101990.0,0.24434962]
[1738359846469,0.29362467,102000.0,101990.0,0.01525599]
[1738359846712,0.39086783,102000.0,101990.0,0.01525599]
[1738359851182,0.54778783,102000.0,101990.0,0.01525599]
[1738359851360,0.58078783,102000.0,101990.0,0.01525599]
[1738359851991,0.58078783,102000.0,101990.0,0.00625599]
[1738359852197,0.67814459,102000.0,101990.0,0.00625599]
[1738359852415,0.54778783,102000.0,101990.0,0.00625599]
[1738359852759,0.54778783,102000.0,101990.0,0.00025599]
[1738359852965,0.54978783,102000.0,101990.0,0.00025599]
[1738359865242,0.54286783,102000.0,101990.0,0.00025599]
[1738359865447,0.64714459,102000.0,101990.0,0.00025599]
[1738359867365,0.54978783,102000.0,101990.0,0.00025599]
[1738359872514,0.26296783,102000.0,101990.0,0.00025599]
[1738359872712,0.16572467,102000.0,101990.0,0.00025599]
[1738359872912,0.26296783,102000.0,101990.0,0.00025599]
[1738359875453,0.09924316,102000.0,101990.0,0.00025599]
[1738359875663,0.24630116,102000.0,101990.0,0.00025599]
[1738359878588,0.31714255,102000.0,101990.0,0.00025599]
[1738359879421,0.57694255,102000.0,101990.0,0.00025599]
[1738359880284,0.66694255,102000.0,101990.0,0.00025599]
[1738359883006,0.67694255,102000.0,101990.0,0.00025599]
[1738359883840,0.52982116,102000.0,101990.0,0.00025599]
[1738359884258,0.30302116,102000.0,101990.0,0.00025599]
[1738359884475,0.25322116,102000.0,101990.0,0.08255599]
[1738359884720,0.24630116,102000.0,101990.0,0.08255599]
[1738359886257,0.24630116,102000.0,101990.0,0.00025599]
[1738359886890,0.24430116,102000.0,101990.0,0.00125599]
[1738359887097,0.24530116,102000.0,101990.0,0.00125599]
[1738359888141,0.34265792,102000.0,101990.0,0.00125599]
[1738359888348,0.24530116,102000.0,101990.0,0.00125599]
[1738359889467,0.148058,102000.0,101990.0,0.00125599]
[1738359889678,0.24530116,102000.0,101990.0,0.00125599]
[1738359890610,0.32540116,102000.0,101990.0,0.00125599]
[1738359890810,0.42275792,102000.0,101990.0,0.00125599]
[1738359891128,0.42967792,102000.0,101990.0,0.00125599]
[1738359893564,0.33232116,102000.0,101990.0,0.00125599]
[1738359896228,0.32540116,102000.0,101990.0,0.00125599]
[1738359896439,0.55502116,102000.0,101990.0,0.00125599]
[1738359896662,0.57502116,102000.0,101990.0,0.00125599]
[1738359897276,0.57402116,102000.0,101990.0,0.00125599]
[1738359897477,0.67137792,102000.0,101990.0,0.00125599]
[1738359897613,0.67437792,102000.0,101990.0,0.00125599]
[1738359898238,0.67449992,102000.0,101990.0,0.00025599]
[1738359898617,0.65449992,102000.0,101990.0,0.00025599]
[1738359898801,0.66449992,102000.0,101990.0,0.00025599]
[1738359899230,0.65449992,102000.0,101990.0,0.00025599]
[1738359899430,0.66449992,102000.0,101990.0,0.00025599]
[1738359900085,0.65449992,102000.0,101990.0,0.00025599]
[1738359900296,0.66449992,102000.0,101990.0,0.00025599]
[1738359901312,0.68449992,102000.0,101990.0,0.00025599]
[1738359903016,0.67449992,102000.0,101990.0,0.00025599]
[1738359905495,0.65449992,102000.0,101990.0,9.9e-07]
[1738359906356,0.564573,101990.0,101980.0,9.5e-07]
[1738359906598,0.454602,101970.0,101960.0,0.0002562]
[1738359906819,1.52606958,101970.0,101960.0,0.00040571]
[1738359906941,1.61606958,101970.0,101960.0,0.00040571]
[1738359907423,1.51606958,101970.0,101960.0,0.00040571]
[1738359909136,1.51706958,101970.0,101960.0,0.00040571]
[1738359909305,1.56702883,101970.0,101960.0,0.00040571]
[1738359910064,1.58588743,101970.0,101960.0,0.00040571]
[1738359910267,1.52849383,101970.0,101960.0,0.00040571]
[1738359910476,1.52949383,101970.0,101960.0,0.00040571]
[1738359910888,1.52949383,101970.0,101940.0,0.00025599]
[1738359910889,0.35583,101950.0,101940.0,0.00025599]
[1738359911112,1.52103458,101950.0,101940.0,0.00074415]
[1738359911352,1.52097587,101950.0,101940.0,0.00074415]
[1738359912175,1.52297587,101950.0,101940.0,0.00074415]
[1738359912595,1.52097587,101950.0,101940.0,0.00074415]
[1738359912800,1.55403458,101950.0,101940.0,0.00074415]
[1738359913003,1.58202285,101950.0,101940.0,0.00074415]
[1738359913214,1.66802285,101950.0,101940.0,0.00074415]
[1738359913639,1.64802285,101950.0,101940.0,1.5e-07]
[1738359913848,1.67163676,101950.0,101940.0,1.5e-07]